Workbook

Sheet Sheet1
A1: 附件：
A2: 镇远县2023年第二批招聘员额制教师综合成绩及拟入围体检人员名单
A3: 序号 | B3: 姓名 | C3: 报考单位 | D3: 岗位代码 | E3: 笔试 成绩 | F3: 笔试所占比例(５0%) | G3: 面试 成绩 | H3: 面试所占比例(５0%) | I3: 综合成绩 | J3: 是否拟入围体检人员
A4: =SUBTOTAL(103,$B$4:B4) -> 1 | B4: 周星妤 | C4: 镇远县幼儿园 | D4: 202301 | E4: 81.32 | F4: =ROUND(E4*0.5,2) -> 40.66 | G4: 74.45 | H4: =ROUND(G4*0.6,2) -> 44.67 | I4: =ROUND(F4+H4,2) -> 85.33 | J4: 是
A5: =SUBTOTAL(103,$B$4:B5) -> 2 | B5: 韦 杰 | C5: 镇远县幼儿园 | D5: 202301 | E5: 81.6 | F5: 40.80 | G5: 70.34 | H5: =ROUND(G5*0.6,2) -> 42.20 | I5: 83.00 | J5: 是
A6: =SUBTOTAL(103,$B$4:B6) -> 3 | B6: 黄 玉 | C6: 镇远县幼儿园 | D6: 202301 | E6: 89.08 | F6: 44.54 | G6: 75.98 | H6: =ROUND(G6*0.5,2) -> 37.99 | I6: 82.53 | J6: 是
A7: =SUBTOTAL(103,$B$4:B7) -> 4 | B7: 杨集景 | C7: 镇远县幼儿园 | D7: 202301 | E7: 85.78 | F7: 42.89 | G7: 78.97 | H7: 39.49 | I7: 82.38 | J7: 是
A8: =SUBTOTAL(103,$B$4:B8) -> 5 | B8: 龙运琴 | C8: 镇远县幼儿园 | D8: 202301 | E8: 86.42 | F8: 43.21 | G8: 76.11 | H8: 38.06 | I8: 81.27 | J8: 是
A9: =SUBTOTAL(103,$B$4:B9) -> 6 | B9: 张桃花 | C9: 镇远县幼儿园 | D9: 202301 | E9: 81.6 | F9: 40.80 | G9: 80.56 | H9: 40.28 | I9: 81.08 | J9: 是
A10: =SUBTOTAL(103,$B$4:B10) -> 7 | B10: 王婷婷 | C10: 镇远县幼儿园 | D10: 202301 | E10: 87.28 | F10: 43.64 | G10: 73.95 | H10: 36.98 | I10: 80.62 | J10: 是
A11: =SUBTOTAL(103,$B$4:B11) -> 8 | B11: 石 艳 | C11: 镇远县幼儿园 | D11: 202301 | E11: 88.34 | F11: 44.17 | G11: 72.75 | H11: 36.38 | I11: 80.55 | J11: 是
A12: =SUBTOTAL(103,$B$4:B12) -> 9 | B12: 田雨渔 | C12: 镇远县幼儿园 | D12: 202301 | E12: 84.58 | F12: 42.29 | G12: 75.04 | H12: 37.52 | I12: 79.81 | J12: 是
A13: =SUBTOTAL(103,$B$4:B13) -> 10 | B13: 李 娥 | C13: 镇远县幼儿园 | D13: 202301 | E13: 84.9 | F13: 42.45 | G13: 74.67 | H13: 37.34 | I13: 79.79 | J13: 是
A14: =SUBTOTAL(103,$B$4:B14) -> 11 | B14: 吴青青 | C14: 镇远县幼儿园 | D14: 202301 | E14: 82.28 | F14: 41.14 | G14: 75.68 | H14: 37.84 | I14: 78.98
A15: =SUBTOTAL(103,$B$4:B15) -> 12 | B15: 肖 香 | C15: 镇远县幼儿园 | D15: 202301 | E15: 86.34 | F15: 43.17 | G15: 70.73 | H15: 35.37 | I15: 78.54
A16: =SUBTOTAL(103,$B$4:B16) -> 13 | B16: 张秋水 | C16: 镇远县幼儿园 | D16: 202301 | E16: 85.08 | F16: 42.54 | G16: 71.62 | H16: 35.81 | I16: 78.35
A17: =SUBTOTAL(103,$B$4:B17) -> 14 | B17: 陈甜甜 | C17: 镇远县幼儿园 | D17: 202301 | E17: 82.68 | F17: 41.34 | G17: 73.79 | H17: 36.90 | I17: 78.24
A18: =SUBTOTAL(103,$B$4:B18) -> 15 | B18: 杨 佩 | C18: 镇远县幼儿园 | D18: 202301 | E18: 85.22 | F18: 42.61 | G18: 70.58 | H18: 35.29 | I18: 77.90
A19: =SUBTOTAL(103,$B$4:B19) -> 16 | B19: 李隆熙 | C19: 镇远县幼儿园 | D19: 202301 | E19: 81.1 | F19: 40.55 | G19: 74.61 | H19: 37.31 | I19: 77.86
A20: =SUBTOTAL(103,$B$4:B20) -> 17 | B20: 张嘉琴 | C20: 镇远县幼儿园 | D20: 202301 | E20: 83.64 | F20: 41.82 | G20: 70.91 | H20: 35.46 | I20: 77.28
A21: =SUBTOTAL(103,$B$4:B21) -> 18 | B21: 付 芳 | C21: 镇远县幼儿园 | D21: 202301 | E21: 84.08 | F21: 42.04 | G21: 68.42 | H21: 34.21 | I21: 76.25
A22: =SUBTOTAL(103,$B$4:B22) -> 19 | B22: 冉莎莎 | C22: 镇远县幼儿园 | D22: 202301 | E22: 82.16 | F22: 41.08 | G22: 69.27 | H22: 34.64 | I22: 75.72
A23: =SUBTOTAL(103,$B$4:B23) -> 20 | B23: 蒲 禹 | C23: 镇远县幼儿园 | D23: 202301 | E23: 84.54 | F23: 42.27 | G23: 65.48 | H23: 32.74 | I23: 75.01
A24: =SUBTOTAL(103,$B$4:B24) -> 21 | B24: 高克丽 | C24: 镇远县幼儿园 | D24: 202301 | E24: 82.4 | F24: 41.20 | G24: 64.01 | H24: 32.01 | I24: 73.21
A25: =SUBTOTAL(103,$B$4:B25) -> 22 | B25: 邹连芳 | C25: 镇远县幼儿园 | D25: 202301 | E25: 87.08 | F25: 43.54 | G25: 缺考 | I25: 缺考
A26: =SUBTOTAL(103,$B$4:B26) -> 23 | B26: 周会敏 | C26: 镇远县幼儿园 | D26: 202301 | E26: 86.04 | F26: 43.02 | G26: 缺考 | I26: 缺考
A27: =SUBTOTAL(103,$B$4:B27) -> 24 | B27: 王 丽 | C27: 镇远县幼儿园 | D27: 202301 | E27: 84.96 | F27: 42.48 | G27: 缺考 | I27: 缺考
A28: =SUBTOTAL(103,$B$4:B28) -> 25 | B28: 杜智银 | C28: 镇远县幼儿园 | D28: 202301 | E28: 84.32 | F28: 42.16 | G28: 缺考 | I28: 缺考
A29: =SUBTOTAL(103,$B$4:B29) -> 26 | B29: 张 燕 | C29: 镇远县幼儿园 | D29: 202301 | E29: 84.24 | F29: 42.12 | G29: 缺考 | I29: 缺考
A30: =SUBTOTAL(103,$B$4:B30) -> 27 | B30: 周 飞 | C30: 镇远县幼儿园 | D30: 202301 | E30: 82.9 | F30: 41.45 | G30: 缺考 | I30: 缺考
A31: =SUBTOTAL(103,$B$4:B31) -> 28 | B31: 郝 夏 | C31: 镇远县幼儿园 | D31: 202301 | E31: 82.06 | F31: 41.03 | G31: 缺考 | I31: 缺考
A32: =SUBTOTAL(103,$B$4:B32) -> 29 | B32: 王成英 | C32: 镇远县幼儿园 | D32: 202301 | E32: 81.3 | F32: 40.65 | G32: 缺考 | I32: 缺考
A33: =SUBTOTAL(103,$B$4:B33) -> 30 | B33: 覃文燕 | C33: 镇远县幼儿园 | D33: 202301 | E33: 81.14 | F33: 40.57 | G33: 缺考 | I33: 缺考
A34: =SUBTOTAL(103,$B$4:B34) -> 31 | B34: 吴秋燕 | C34: 镇远县幼儿园 | D34: 202302 | E34: 79.54 | F34: 39.77 | G34: 83.72 | H34: =ROUND(G34*0.5,2) -> 41.86 | I34: =ROUND(F34+H34,2) -> 81.63 | J34: 是
A35: =SUBTOTAL(103,$B$4:B35) -> 32 | B35: 杨艳玲 | C35: 镇远县幼儿园 | D35: 202302 | E35: 82.24 | F35: 41.12 | G35: 72.55 | H35: =ROUND(G35*0.5,2) -> 36.28 | I35: =ROUND(F35+H35,2) -> 77.40 | J35: 是
A36: =SUBTOTAL(103,$B$4:B36) -> 33 | B36: 黄莉娅 | C36: 镇远县幼儿园 | D36: 202302 | E36: 75.66 | F36: 37.83 | G36: 70.90 | H36: =ROUND(G36*0.5,2) -> 35.45 | I36: =ROUND(F36+H36,2) -> 73.28 | J36: 是
A37: =SUBTOTAL(103,$B$4:B37) -> 34 | B37: 杨 娟 | C37: 镇远县幼儿园 | D37: 202302 | E37: 75.92 | F37: 37.96 | G37: 67.30 | H37: =ROUND(G37*0.5,2) -> 33.65 | I37: =ROUND(F37+H37,2) -> 71.61
A38: =SUBTOTAL(103,$B$4:B38) -> 35 | B38: 石云阳 | C38: 镇远县幼儿园 | D38: 202302 | E38: 71.14 | F38: 35.57 | G38: 66.80 | H38: =ROUND(G38*0.5,2) -> 33.40 | I38: =ROUND(F38+H38,2) -> 68.97
A39: =SUBTOTAL(103,$B$4:B39) -> 36 | B39: 骆 霏 | C39: 镇远县幼儿园 | D39: 202302 | E39: 81.86 | F39: 40.93 | G39: 缺考 | I39: 缺考
A40: =SUBTOTAL(103,$B$4:B40) -> 37 | B40: 张皓月 | C40: 镇远县幼儿园 | D40: 202302 | E40: 79.56 | F40: 39.78 | G40: 缺考 | I40: 缺考
A41: =SUBTOTAL(103,$B$4:B41) -> 38 | B41: 吴 艳 | C41: 镇远县幼儿园 | D41: 202302 | E41: 69.44 | F41: 34.72 | G41: 缺考 | I41: 缺考
A42: =SUBTOTAL(103,$B$4:B42) -> 39 | B42: 吴治英 | C42: 镇远县幼儿园 | D42: 202302 | E42: 69.2 | F42: 34.60 | G42: 缺考 | I42: 缺考
A43: =SUBTOTAL(103,$B$4:B43) -> 40 | B43: 何易菊 | C43: 镇远县幼儿园 | D43: 202303 | E43: 80 | F43: 40.00 | G43: 73.80 | H43: =ROUND(G43*0.5,2) -> 36.90 | I43: =ROUND(F43+H43,2) -> 76.90 | J43: 是
A44: =SUBTOTAL(103,$B$4:B44) -> 41 | B44: 龙爱琼 | C44: 镇远县幼儿园 | D44: 202303 | E44: 72.94 | F44: 36.47 | G44: 78.67 | H44: 39.34 | I44: 75.81 | J44: 是
A45: =SUBTOTAL(103,$B$4:B45) -> 42 | B45: 杨艳玲 | C45: 镇远县幼儿园 | D45: 202303 | E45: 79.32 | F45: 39.66 | G45: 71.57 | H45: 35.79 | I45: 75.45 | J45: 是
A46: =SUBTOTAL(103,$B$4:B46) -> 43 | B46: 姜 珮 | C46: 镇远县幼儿园 | D46: 202303 | E46: 78.5 | F46: 39.25 | G46: 72.28 | H46: 36.14 | I46: 75.39 | J46: 是
A47: =SUBTOTAL(103,$B$4:B47) -> 44 | B47: 刘倩倩 | C47: 镇远县幼儿园 | D47: 202303 | E47: 70.52 | F47: 35.26 | G47: 77.63 | H47: 38.82 | I47: 74.08 | J47: 是
A48: =SUBTOTAL(103,$B$4:B48) -> 45 | B48: 唐 青 | C48: 镇远县幼儿园 | D48: 202303 | E48: 71.04 | F48: 35.52 | G48: 76.03 | H48: 38.02 | I48: 73.54 | J48: 是
A49: =SUBTOTAL(103,$B$4:B49) -> 46 | B49: 杨文明 | C49: 镇远县幼儿园 | D49: 202303 | E49: 74.68 | F49: 37.34 | G49: 69.17 | H49: 34.59 | I49: 71.93 | J49: 是
A50: =SUBTOTAL(103,$B$4:B50) -> 47 | B50: 胡 敏 | C50: 镇远县幼儿园 | D50: 202303 | E50: 73.18 | F50: 36.59 | G50: 69.83 | H50: 34.92 | I50: 71.51 | J50: 是
A51: =SUBTOTAL(103,$B$4:B51) -> 48 | B51: 王 美 | C51: 镇远县幼儿园 | D51: 202303 | E51: 72.88 | F51: 36.44 | G51: 69.95 | H51: 34.98 | I51: 71.42 | J51: 是
A52: =SUBTOTAL(103,$B$4:B52) -> 49 | B52: 张秀萍 | C52: 镇远县幼儿园 | D52: 202303 | E52: 68.66 | F52: 34.33 | G52: 69.72 | H52: 34.86 | I52: 69.19 | J52: 是
A53: =SUBTOTAL(103,$B$4:B53) -> 50 | B53: 胡 琴 | C53: 镇远县幼儿园 | D53: 202303 | E53: 68.14 | F53: 34.07 | G53: 67.57 | H53: 33.79 | I53: 67.86
A54: =SUBTOTAL(103,$B$4:B54) -> 51 | B54: 潘沙沙 | C54: 镇远县幼儿园 | D54: 202303 | E54: 64.78 | F54: 32.39 | G54: 70.28 | H54: 35.14 | I54: 67.53
A55: =SUBTOTAL(103,$B$4:B55) -> 52 | B55: 杨香兰 | C55: 镇远县幼儿园 | D55: 202303 | E55: 61.4 | F55: 30.70 | G55: 71.92 | H55: 35.96 | I55: 66.66
A56: =SUBTOTAL(103,$B$4:B56) -> 53 | B56: 王 虹 | C56: 镇远县幼儿园 | D56: 202303 | E56: 69.46 | F56: 34.73 | G56: 62.43 | H56: 31.22 | I56: 65.95
A57: =SUBTOTAL(103,$B$4:B57) -> 54 | B57: 陈 卫 | C57: 镇远县蕉溪镇中心幼儿园 | D57: 202304 | E57: 83.1 | F57: 41.55 | G57: 71.03 | H57: 35.52 | I57: 77.07 | J57: 是
A58: =SUBTOTAL(103,$B$4:B58) -> 55 | B58: 谌业莉 | C58: 镇远县蕉溪镇中心幼儿园 | D58: 202304 | E58: 80.84 | F58: 40.42 | G58: 71.43 | H58: 35.72 | I58: 76.14 | J58: 是
A59: =SUBTOTAL(103,$B$4:B59) -> 56 | B59: 文珍艳 | C59: 镇远县蕉溪镇中心幼儿园 | D59: 202304 | E59: 78.74 | F59: 39.37 | G59: 67.60 | H59: 33.80 | I59: 73.17
A60: =SUBTOTAL(103,$B$4:B60) -> 57 | B60: 彭金艳 | C60: 镇远县蕉溪镇中心幼儿园 | D60: 202304 | E60: 83.9 | F60: 41.95 | G60: 缺考 | I60: 缺考
A61: =SUBTOTAL(103,$B$4:B61) -> 58 | B61: 刘 蓉 | C61: 镇远县蕉溪镇中心幼儿园 | D61: 202304 | E61: 81.74 | F61: 40.87 | G61: 缺考 | I61: 缺考
A62: =SUBTOTAL(103,$B$4:B62) -> 59 | B62: 莫文睿 | C62: 镇远县蕉溪镇中心幼儿园 | D62: 202304 | E62: 81.18 | F62: 40.59 | G62: 缺考 | I62: 缺考
A63: =SUBTOTAL(103,$B$4:B63) -> 60 | B63: 陈明婕 | C63: 镇远县乡镇幼儿园 | D63: 202305 | E63: 75.3 | F63: 37.65 | G63: 97.07 | H63: =ROUND(G63*0.5,2) -> 48.54 | I63: =ROUND(F63+H63,2) -> 86.19 | J63: 是
A64: =SUBTOTAL(103,$B$4:B64) -> 61 | B64: 唐元桃 | C64: 镇远县乡镇幼儿园 | D64: 202305 | E64: 75.46 | F64: 37.73 | G64: 90.23 | H64: 45.12 | I64: 82.85 | J64: 是
A65: =SUBTOTAL(103,$B$4:B65) -> 62 | B65: 邹 燕 | C65: 镇远县乡镇幼儿园 | D65: 202305 | E65: 84.36 | F65: 42.18 | G65: 80.42 | H65: 40.21 | I65: 82.39
A66: =SUBTOTAL(103,$B$4:B66) -> 63 | B66: 石绍玲 | C66: 镇远县乡镇幼儿园 | D66: 202305 | E66: 70.66 | F66: 35.33 | G66: 89.23 | H66: 44.62 | I66: 79.95
A67: =SUBTOTAL(103,$B$4:B67) -> 64 | B67: 兰 娜 | C67: 镇远县乡镇幼儿园 | D67: 202305 | E67: 70.08 | F67: 35.04 | G67: 84.23 | H67: 42.12 | I67: 77.16
A68: =SUBTOTAL(103,$B$4:B68) -> 65 | B68: 罗凤英 | C68: 镇远县乡镇幼儿园 | D68: 202305 | E68: 68.96 | F68: =ROUND(E68*0.5,2) -> 34.48 | G68: 83.20 | H68: 41.60 | I68: 76.08
A69: =SUBTOTAL(103,$B$4:B69) -> 66 | B69: 蒋 琳 | C69: 镇远县村级幼儿园 | D69: 202306 | E69: 81.28 | F69: 40.64 | G69: 90.01 | H69: 45.01 | I69: 85.65 | J69: 是
A70: =SUBTOTAL(103,$B$4:B70) -> 67 | B70: 陈亮林 | C70: 镇远县村级幼儿园 | D70: 202306 | E70: 81.9 | F70: 40.95 | G70: 88.58 | H70: 44.29 | I70: 85.24 | J70: 是
A71: =SUBTOTAL(103,$B$4:B71) -> 68 | B71: 张婷婷 | C71: 镇远县村级幼儿园 | D71: 202306 | E71: 84.66 | F71: 42.33 | G71: 84.75 | H71: 42.38 | I71: 84.71 | J71: 是
A72: =SUBTOTAL(103,$B$4:B72) -> 69 | B72: 徐 琳 | C72: 镇远县村级幼儿园 | D72: 202306 | E72: 86.4 | F72: 43.20 | G72: 82.81 | H72: 41.41 | I72: 84.61 | J72: 是
A73: =SUBTOTAL(103,$B$4:B73) -> 70 | B73: 韩 姗 | C73: 镇远县村级幼儿园 | D73: 202306 | E73: 85.08 | F73: 42.54 | G73: 83.17 | H73: 41.59 | I73: 84.13 | J73: 是
A74: =SUBTOTAL(103,$B$4:B74) -> 71 | B74: 吴 佳 | C74: 镇远县村级幼儿园 | D74: 202306 | E74: 83.12 | F74: 41.56 | G74: 82.99 | H74: 41.50 | I74: 83.06 | J74: 是
A75: =SUBTOTAL(103,$B$4:B75) -> 72 | B75: 潘小蓉 | C75: 镇远县村级幼儿园 | D75: 202306 | E75: 81.2 | F75: 40.60 | G75: 84.54 | H75: 42.27 | I75: 82.87 | J75: 是
A76: =SUBTOTAL(103,$B$4:B76) -> 73 | B76: 王 丽 | C76: 镇远县村级幼儿园 | D76: 202306 | E76: 83.02 | F76: 41.51 | G76: 82.17 | H76: 41.09 | I76: 82.60 | J76: 是
A77: =SUBTOTAL(103,$B$4:B77) -> 74 | B77: 吴妹花 | C77: 镇远县村级幼儿园 | D77: 202306 | E77: 82.6 | F77: 41.30 | G77: 82.57 | H77: 41.29 | I77: 82.59
A78: =SUBTOTAL(103,$B$4:B78) -> 75 | B78: 曾 娜 | C78: 镇远县村级幼儿园 | D78: 202306 | E78: 82.98 | F78: 41.49 | G78: 82.10 | H78: 41.05 | I78: 82.54
A79: =SUBTOTAL(103,$B$4:B79) -> 76 | B79: 陈红雨 | C79: 镇远县村级幼儿园 | D79: 202306 | E79: 80.94 | F79: 40.47 | G79: 83.33 | H79: 41.67 | I79: 82.14
A80: =SUBTOTAL(103,$B$4:B80) -> 77 | B80: 张 艳 | C80: 镇远县村级幼儿园 | D80: 202306 | E80: 82.38 | F80: 41.19 | G80: 81.68 | H80: 40.84 | I80: 82.03
A81: =SUBTOTAL(103,$B$4:B81) -> 78 | B81: 万 芹 | C81: 镇远县村级幼儿园 | D81: 202306 | E81: 84.1 | F81: 42.05 | G81: 79.77 | H81: 39.89 | I81: 81.94
A82: =SUBTOTAL(103,$B$4:B82) -> 79 | B82: 吴大美 | C82: 镇远县村级幼儿园 | D82: 202306 | E82: 81.68 | F82: 40.84 | G82: 80.45 | H82: 40.23 | I82: 81.07
A83: =SUBTOTAL(103,$B$4:B83) -> 80 | B83: 何光琴 | C83: 镇远县村级幼儿园 | D83: 202306 | E83: 81.34 | F83: 40.67 | G83: 80.64 | H83: 40.32 | I83: 80.99
A84: =SUBTOTAL(103,$B$4:B84) -> 81 | B84: 万桃英 | C84: 镇远县村级幼儿园 | D84: 202306 | E84: 81.36 | F84: 40.68 | G84: 80.56 | H84: 40.28 | I84: 80.96
A85: =SUBTOTAL(103,$B$4:B85) -> 82 | B85: 姜继柳 | C85: 镇远县村级幼儿园 | D85: 202306 | E85: 82 | F85: 41.00 | G85: 79.83 | H85: 39.92 | I85: 80.92
A86: =SUBTOTAL(103,$B$4:B86) -> 83 | B86: 冉莲芳 | C86: 镇远县村级幼儿园 | D86: 202306 | E86: 83.6 | F86: 41.80 | G86: 76.71 | H86: 38.36 | I86: 80.16
A87: =SUBTOTAL(103,$B$4:B87) -> 84 | B87: 宋飞燕 | C87: 镇远县村级幼儿园 | D87: 202306 | E87: 80.76 | F87: 40.38 | G87: 77.65 | H87: 38.83 | I87: 79.21
A88: =SUBTOTAL(103,$B$4:B88) -> 85 | B88: 余含英 | C88: 镇远县村级幼儿园 | D88: 202306 | E88: 82.64 | F88: 41.32 | G88: 74.68 | H88: 37.34 | I88: 78.66
A89: =SUBTOTAL(103,$B$4:B89) -> 86 | B89: 吴显平 | C89: 镇远县村级幼儿园 | D89: 202306 | E89: 80.74 | F89: 40.37 | G89: 75.87 | H89: 37.94 | I89: 78.31
A90: =SUBTOTAL(103,$B$4:B90) -> 87 | B90: 胡 佳 | C90: 镇远县村级幼儿园 | D90: 202306 | E90: 82.26 | F90: 41.13 | G90: 缺考 | I90: 缺考
A91: =SUBTOTAL(103,$B$4:B91) -> 88 | B91: 冉智琴 | C91: 镇远县村级幼儿园 | D91: 202306 | E91: 80.42 | F91: 40.21 | G91: 缺考 | I91: 缺考
A92: =SUBTOTAL(103,$B$4:B92) -> 89 | B92: 田 甜 | C92: 镇远县村级幼儿园 | D92: 202306 | E92: 79.54 | F92: 39.77 | G92: 缺考 | I92: 缺考
A93: =SUBTOTAL(103,$B$4:B93) -> 90 | B93: 吴萍萍 | C93: 镇远县村级幼儿园 | D93: 202307 | E93: 69.7 | F93: 34.85 | G93: 84.60 | H93: =ROUND(G93*0.6,2) -> 50.76 | I93: =ROUND(F93+H93,2) -> 85.61 | J93: 是
A94: =SUBTOTAL(103,$B$4:B94) -> 91 | B94: 田美云 | C94: 镇远县村级幼儿园 | D94: 202307 | E94: 66.3 | F94: 33.15 | G94: 83.83 | H94: =ROUND(G94*0.6,2) -> 50.30 | I94: 83.45 | J94: 是
A95: =SUBTOTAL(103,$B$4:B95) -> 92 | B95: 张媛鑫 | C95: 镇远县村级幼儿园 | D95: 202307 | E95: 73.28 | F95: 36.64 | G95: 74.59 | H95: =ROUND(G95*0.6,2) -> 44.75 | I95: 81.39 | J95: 是
A96: =SUBTOTAL(103,$B$4:B96) -> 93 | B96: 谭文芳 | C96: 镇远县村级幼儿园 | D96: 202307 | E96: 76.68 | F96: 38.34 | G96: 78.50 | H96: =ROUND(G96*0.5,2) -> 39.25 | I96: 77.59 | J96: 是
A97: =SUBTOTAL(103,$B$4:B97) -> 94 | B97: 龙邱燕 | C97: 镇远县村级幼儿园 | D97: 202307 | E97: 67.5 | F97: 33.75 | G97: 72.42 | H97: =ROUND(G97*0.6,2) -> 43.45 | I97: 77.20 | J97: 是
A98: =SUBTOTAL(103,$B$4:B98) -> 95 | B98: 罗安珍 | C98: 镇远县村级幼儿园 | D98: 202307 | E98: 73.72 | F98: 36.86 | G98: 73.03 | H98: =ROUND(G98*0.5,2) -> 36.52 | I98: 73.38 | J98: 是
A99: =SUBTOTAL(103,$B$4:B99) -> 96 | B99: 宋琴琴 | C99: 镇远县村级幼儿园 | D99: 202307 | E99: 65.66 | F99: 32.83 | G99: 63.45 | H99: =ROUND(G99*0.6,2) -> 38.07 | I99: 70.90
A100: =SUBTOTAL(103,$B$4:B100) -> 97 | B100: 杨 丽 | C100: 镇远县村级幼儿园 | D100: 202307 | E100: 71.8 | F100: 35.90 | G100: 66.67 | H100: =ROUND(G100*0.5,2) -> 33.34 | I100: 69.24
A101: =SUBTOTAL(103,$B$4:B101) -> 98 | B101: 潘丽娟 | C101: 镇远县村级幼儿园 | D101: 202307 | E101: 68.36 | F101: 34.18 | G101: 65.58 | H101: 32.79 | I101: 66.97
A102: =SUBTOTAL(103,$B$4:B102) -> 99 | B102: 何洪勇 | C102: 镇远县村级幼儿园 | D102: 202307 | E102: 63.58 | F102: 31.79 | G102: 67.27 | H102: 33.64 | I102: 65.43
A103: =SUBTOTAL(103,$B$4:B103) -> 100 | B103: 张奇音 | C103: 镇远县村级幼儿园 | D103: 202308 | E103: 76.08 | F103: 38.04 | G103: 71.13 | H103: 35.57 | I103: 73.61 | J103: 是
A104: =SUBTOTAL(103,$B$4:B104) -> 101 | B104: 雷国英 | C104: 镇远县村级幼儿园 | D104: 202308 | E104: 72.38 | F104: 36.19 | G104: 71.17 | H104: 35.59 | I104: 71.78 | J104: 是
A105: =SUBTOTAL(103,$B$4:B105) -> 102 | B105: 王 琴 | C105: 镇远县村级幼儿园 | D105: 202308 | E105: 71.32 | F105: 35.66 | G105: 72.17 | H105: 36.09 | I105: 71.75
A106: =SUBTOTAL(103,$B$4:B106) -> 103 | B106: 袁小婷 | C106: 镇远县村级幼儿园 | D106: 202308 | E106: 71.84 | F106: 35.92 | G106: 71.28 | H106: 35.64 | I106: 71.56
A107: =SUBTOTAL(103,$B$4:B107) -> 104 | B107: 田 琴 | C107: 镇远县村级幼儿园 | D107: 202308 | E107: 66.04 | F107: 33.02 | G107: 67.70 | H107: 33.85 | I107: 66.87
A108: =SUBTOTAL(103,$B$4:B108) -> 105 | B108: 雷 静 | C108: 镇远县村级幼儿园 | D108: 202308 | E108: 63.98 | F108: 31.99 | G108: 缺考 | I108: 缺考
A109: =SUBTOTAL(103,$B$4:B109) -> 106 | B109: 杨 潇 | C109: 镇远县村级幼儿园 | D109: 202309 | E109: 84.64 | F109: 42.32 | G109: 88.34 | H109: =ROUND(G109*0.5,2) -> 44.17 | I109: =ROUND(F109+H109,2) -> 86.49 | J109: 是
A110: =SUBTOTAL(103,$B$4:B110) -> 107 | B110: 陈霜霜 | C110: 镇远县村级幼儿园 | D110: 202309 | E110: 83.48 | F110: 41.74 | G110: 88.50 | H110: 44.25 | I110: 85.99 | J110: 是
A111: =SUBTOTAL(103,$B$4:B111) -> 108 | B111: 骆 进 | C111: 镇远县村级幼儿园 | D111: 202309 | E111: 86.48 | F111: 43.24 | G111: 81.97 | H111: 40.99 | I111: 84.23 | J111: 是
A112: =SUBTOTAL(103,$B$4:B112) -> 109 | B112: 程朝琴 | C112: 镇远县村级幼儿园 | D112: 202309 | E112: 79.02 | F112: 39.51 | G112: 88.75 | H112: 44.38 | I112: 83.89 | J112: 是
A113: =SUBTOTAL(103,$B$4:B113) -> 110 | B113: 刘 芸 | C113: 镇远县村级幼儿园 | D113: 202309 | E113: 82.58 | F113: 41.29 | G113: 84.30 | H113: 42.15 | I113: 83.44 | J113: 是
A114: =SUBTOTAL(103,$B$4:B114) -> 111 | B114: 李岳婵 | C114: 镇远县村级幼儿园 | D114: 202309 | E114: 82.98 | F114: 41.49 | G114: 82.87 | H114: 41.44 | I114: 82.93 | J114: 是
A115: =SUBTOTAL(103,$B$4:B115) -> 112 | B115: 邓容平 | C115: 镇远县村级幼儿园 | D115: 202309 | E115: 80.12 | F115: 40.06 | G115: 85.40 | H115: 42.70 | I115: 82.76 | J115: 是
A116: =SUBTOTAL(103,$B$4:B116) -> 113 | B116: 张秋霞 | C116: 镇远县村级幼儿园 | D116: 202309 | E116: 82.28 | F116: 41.14 | G116: 81.19 | H116: 40.60 | I116: 81.74
A117: =SUBTOTAL(103,$B$4:B117) -> 114 | B117: 吴国荣 | C117: 镇远县村级幼儿园 | D117: 202309 | E117: 84.22 | F117: 42.11 | G117: 79.24 | H117: 39.62 | I117: 81.73
A118: =SUBTOTAL(103,$B$4:B118) -> 115 | B118: 杨莹莹 | C118: 镇远县村级幼儿园 | D118: 202309 | E118: 84 | F118: 42.00 | G118: 78.00 | H118: 39.00 | I118: 81.00
A119: =SUBTOTAL(103,$B$4:B119) -> 116 | B119: 刘桃浪 | C119: 镇远县村级幼儿园 | D119: 202309 | E119: 82.56 | F119: 41.28 | G119: 76.18 | H119: 38.09 | I119: 79.37
A120: =SUBTOTAL(103,$B$4:B120) -> 117 | B120: 周祖艳 | C120: 镇远县村级幼儿园 | D120: 202309 | E120: 80.18 | F120: 40.09 | G120: 77.26 | H120: 38.63 | I120: 78.72
A121: =SUBTOTAL(103,$B$4:B121) -> 118 | B121: 杨英学 | C121: 镇远县村级幼儿园 | D121: 202309 | E121: 83.04 | F121: 41.52 | G121: 71.59 | H121: 35.80 | I121: 77.32
A122: =SUBTOTAL(103,$B$4:B122) -> 119 | B122: 聂 珊 | C122: 镇远县村级幼儿园 | D122: 202309 | E122: 78.36 | F122: 39.18 | G122: 45.93 | H122: 22.97 | I122: 62.15
A123: =SUBTOTAL(103,$B$4:B123) -> 120 | B123: 任 会 | C123: 镇远县村级幼儿园 | D123: 202309 | E123: 86.56 | F123: 43.28 | G123: 缺考 | I123: 缺考
A124: =SUBTOTAL(103,$B$4:B124) -> 121 | B124: 吴彩云 | C124: 镇远县村级幼儿园 | D124: 202309 | E124: 81.42 | F124: 40.71 | G124: 缺考 | I124: 缺考
A125: =SUBTOTAL(103,$B$4:B125) -> 122 | B125: 王玲玉 | C125: 镇远县村级幼儿园 | D125: 202309 | E125: 81.28 | F125: 40.64 | G125: 缺考 | I125: 缺考
A126: =SUBTOTAL(103,$B$4:B126) -> 123 | B126: 马花朵 | C126: 镇远县村级幼儿园 | D126: 202309 | E126: 80.34 | F126: 40.17 | G126: 缺考 | I126: 缺考
A127: =SUBTOTAL(103,$B$4:B127) -> 124 | B127: 彭 梅 | C127: 镇远县村级幼儿园 | D127: 202309 | E127: 78.64 | F127: 39.32 | G127: 缺考 | I127: 缺考
A128: =SUBTOTAL(103,$B$4:B128) -> 125 | B128: 麻秀娟 | C128: 镇远县村级幼儿园 | D128: 202309 | E128: 78.18 | F128: 39.09 | G128: 缺考 | I128: 缺考
A129: =SUBTOTAL(103,$B$4:B129) -> 126 | B129: 李芳芳 | C129: 镇远县村级幼儿园 | D129: 202309 | E129: 77.9 | F129: 38.95 | G129: 缺考 | I129: 缺考
A130: =SUBTOTAL(103,$B$4:B130) -> 127 | B130: 万倩琳 | C130: 镇远县村级幼儿园 | D130: 202310 | E130: 81.1 | F130: 40.55 | G130: 86.00 | H130: =ROUND(G130*0.5,2) -> 43.00 | I130: =ROUND(F130+H130,2) -> 83.55 | J130: 是
A131: =SUBTOTAL(103,$B$4:B131) -> 128 | B131: 李璐瑶 | C131: 镇远县村级幼儿园 | D131: 202310 | E131: 73.72 | F131: 36.86 | G131: 92.95 | H131: 46.48 | I131: 83.34 | J131: 是
A132: =SUBTOTAL(103,$B$4:B132) -> 129 | B132: 杨丽丹 | C132: 镇远县村级幼儿园 | D132: 202310 | E132: 71.34 | F132: =ROUND(E132*0.5,2) -> 35.67 | G132: 90.11 | H132: 45.06 | I132: 80.73 | J132: 是
A133: =SUBTOTAL(103,$B$4:B133) -> 130 | B133: 李紫珍 | C133: 镇远县村级幼儿园 | D133: 202310 | E133: 67.4 | F133: 33.70 | G133: 93.77 | H133: 46.89 | I133: 80.59 | J133: 是
A134: =SUBTOTAL(103,$B$4:B134) -> 131 | B134: 马 钰 | C134: 镇远县村级幼儿园 | D134: 202310 | E134: 69 | F134: 34.50 | G134: 88.11 | H134: 44.06 | I134: 78.56 | J134: 是
A135: =SUBTOTAL(103,$B$4:B135) -> 132 | B135: 宋吉美 | C135: 镇远县村级幼儿园 | D135: 202310 | E135: 68.66 | F135: 34.33 | G135: 87.88 | H135: 43.94 | I135: 78.27 | J135: 是
A136: =SUBTOTAL(103,$B$4:B136) -> 133 | B136: 林丽萍 | C136: 镇远县村级幼儿园 | D136: 202310 | E136: 66.8 | F136: 33.40 | G136: 87.33 | H136: 43.67 | I136: 77.07 | J136: 是
A137: =SUBTOTAL(103,$B$4:B137) -> 134 | B137: 洪 燕 | C137: 镇远县村级幼儿园 | D137: 202310 | E137: 64.42 | F137: 32.21 | G137: 87.44 | H137: 43.72 | I137: 75.93
A138: =SUBTOTAL(103,$B$4:B138) -> 135 | B138: 曾凡梅 | C138: 镇远县村级幼儿园 | D138: 202310 | E138: 65.54 | F138: 32.77 | G138: 84.69 | H138: 42.35 | I138: 75.12
A139: =SUBTOTAL(103,$B$4:B139) -> 136 | B139: 刘明欢 | C139: 镇远县村级幼儿园 | D139: 202310 | E139: 60.06 | F139: 30.03 | G139: 86.64 | H139: 43.32 | I139: 73.35
A140: =SUBTOTAL(103,$B$4:B140) -> 137 | B140: 曾玲玲 | C140: 镇远县村级幼儿园 | D140: 202310 | E140: 68.2 | F140: 34.10 | G140: 78.15 | H140: 39.08 | I140: 73.18
A141: =SUBTOTAL(103,$B$4:B141) -> 138 | B141: 洪 琴 | C141: 镇远县村级幼儿园 | D141: 202310 | E141: 62.18 | F141: 31.09 | G141: 81.37 | H141: 40.69 | I141: 71.78
A142: =SUBTOTAL(103,$B$4:B142) -> 139 | B142: 袁 英 | C142: 镇远县村级幼儿园 | D142: 202310 | E142: 60.98 | F142: 30.49 | G142: 79.70 | H142: 39.85 | I142: 70.34
A143: =SUBTOTAL(103,$B$4:B143) -> 140 | B143: 钟 琴 | C143: 镇远县村级幼儿园 | D143: 202310 | E143: 60.84 | F143: 30.42 | G143: 73.30 | H143: 36.65 | I143: 67.07
A144: =SUBTOTAL(103,$B$4:B144) -> 141 | B144: 代 英 | C144: 镇远县村级幼儿园 | D144: 202311 | E144: 85.74 | F144: 42.87 | G144: 83.47 | H144: 41.74 | I144: 84.61 | J144: 是
A145: =SUBTOTAL(103,$B$4:B145) -> 142 | B145: 杨雅婷 | C145: 镇远县村级幼儿园 | D145: 202311 | E145: 79.32 | F145: 39.66 | G145: 84.35 | H145: 42.18 | I145: 81.84 | J145: 是
A146: =SUBTOTAL(103,$B$4:B146) -> 143 | B146: 黄雁萍 | C146: 镇远县村级幼儿园 | D146: 202311 | E146: 85.58 | F146: 42.79 | G146: 76.22 | H146: 38.11 | I146: 80.90 | J146: 是
A147: =SUBTOTAL(103,$B$4:B147) -> 144 | B147: 罗 怿 | C147: 镇远县村级幼儿园 | D147: 202311 | E147: 79.3 | F147: 39.65 | G147: 82.16 | H147: 41.08 | I147: 80.73 | J147: 是
A148: =SUBTOTAL(103,$B$4:B148) -> 145 | B148: 杨文霞 | C148: 镇远县村级幼儿园 | D148: 202311 | E148: 79.88 | F148: 39.94 | G148: 81.06 | H148: 40.53 | I148: 80.47 | J148: 是
A149: =SUBTOTAL(103,$B$4:B149) -> 146 | B149: 石刘才均 | C149: 镇远县村级幼儿园 | D149: 202311 | E149: 80.82 | F149: 40.41 | G149: 77.69 | H149: 38.85 | I149: 79.26 | J149: 是
A150: =SUBTOTAL(103,$B$4:B150) -> 147 | B150: 张巍艺 | C150: 镇远县村级幼儿园 | D150: 202311 | E150: 80.8 | F150: 40.40 | G150: 76.24 | H150: 38.12 | I150: 78.52 | J150: 是
A151: =SUBTOTAL(103,$B$4:B151) -> 148 | B151: 黄米雪 | C151: 镇远县村级幼儿园 | D151: 202311 | E151: 84 | F151: 42.00 | G151: 72.25 | H151: 36.13 | I151: 78.13 | J151: 是
A152: =SUBTOTAL(103,$B$4:B152) -> 149 | B152: 宋光芝 | C152: 镇远县村级幼儿园 | D152: 202311 | E152: 80.56 | F152: 40.28 | G152: 75.04 | H152: 37.52 | I152: 77.80 | J152: 是
A153: =SUBTOTAL(103,$B$4:B153) -> 150 | B153: 陈清林 | C153: 镇远县村级幼儿园 | D153: 202311 | E153: 80.44 | F153: 40.22 | G153: 74.23 | H153: 37.12 | I153: 77.34 | J153: 是
A154: =SUBTOTAL(103,$B$4:B154) -> 151 | B154: 程汉艳 | C154: 镇远县村级幼儿园 | D154: 202311 | E154: 80.86 | F154: 40.43 | G154: 73.56 | H154: 36.78 | I154: 77.21 | J154: 是
A155: =SUBTOTAL(103,$B$4:B155) -> 152 | B155: 李长娥 | C155: 镇远县村级幼儿园 | D155: 202311 | E155: 83.26 | F155: 41.63 | G155: 69.79 | H155: 34.90 | I155: 76.53 | J155: 是
A156: =SUBTOTAL(103,$B$4:B156) -> 153 | B156: 杨海霞 | C156: 镇远县村级幼儿园 | D156: 202311 | E156: 79.54 | F156: 39.77 | G156: 72.96 | H156: 36.48 | I156: 76.25 | J156: 是
A157: =SUBTOTAL(103,$B$4:B157) -> 154 | B157: 杨骐宇 | C157: 镇远县村级幼儿园 | D157: 202311 | E157: 80.34 | F157: 40.17 | G157: 71.37 | H157: 35.69 | I157: 75.86
A158: =SUBTOTAL(103,$B$4:B158) -> 155 | B158: 陆梅琳 | C158: 镇远县村级幼儿园 | D158: 202311 | E158: 82.2 | F158: 41.10 | G158: 68.85 | H158: 34.43 | I158: 75.53
A159: =SUBTOTAL(103,$B$4:B159) -> 156 | B159: 兰菲亚 | C159: 镇远县村级幼儿园 | D159: 202311 | E159: 81.36 | F159: 40.68 | G159: 68.27 | H159: 34.14 | I159: 74.82
A160: =SUBTOTAL(103,$B$4:B160) -> 157 | B160: 王碧林 | C160: 镇远县村级幼儿园 | D160: 202311 | E160: 78.48 | F160: 39.24 | G160: 70.39 | H160: 35.20 | I160: 74.44
A161: =SUBTOTAL(103,$B$4:B161) -> 158 | B161: 潘德群 | C161: 镇远县村级幼儿园 | D161: 202311 | E161: 84.62 | F161: 42.31 | G161: 64.23 | H161: 32.12 | I161: 74.43
A162: =SUBTOTAL(103,$B$4:B162) -> 159 | B162: 张永英 | C162: 镇远县村级幼儿园 | D162: 202311 | E162: 81.98 | F162: 40.99 | G162: 66.47 | H162: 33.24 | I162: 74.23
A163: =SUBTOTAL(103,$B$4:B163) -> 160 | B163: 宋方丽 | C163: 镇远县村级幼儿园 | D163: 202311 | E163: 79.38 | F163: 39.69 | G163: 67.92 | H163: 33.96 | I163: 73.65
A164: =SUBTOTAL(103,$B$4:B164) -> 161 | B164: 龚永琴 | C164: 镇远县村级幼儿园 | D164: 202311 | E164: 83.54 | F164: 41.77 | G164: 63.48 | H164: 31.74 | I164: 73.51
A165: =SUBTOTAL(103,$B$4:B165) -> 162 | B165: 王 艳 | C165: 镇远县村级幼儿园 | D165: 202311 | E165: 79.04 | F165: 39.52 | G165: 67.62 | H165: 33.81 | I165: 73.33
A166: =SUBTOTAL(103,$B$4:B166) -> 163 | B166: 杨 晶 | C166: 镇远县村级幼儿园 | D166: 202311 | E166: 79.42 | F166: 39.71 | G166: 66.75 | H166: 33.38 | I166: 73.09
A167: =SUBTOTAL(103,$B$4:B167) -> 164 | B167: 舒海丽 | C167: 镇远县村级幼儿园 | D167: 202311 | E167: 80.72 | F167: 40.36 | G167: 63.36 | H167: 31.68 | I167: 72.04
A168: =SUBTOTAL(103,$B$4:B168) -> 165 | B168: 袁合琴 | C168: 镇远县村级幼儿园 | D168: 202311 | E168: 80.32 | F168: 40.16 | G168: 63.28 | H168: 31.64 | I168: 71.80
A169: =SUBTOTAL(103,$B$4:B169) -> 166 | B169: 杨小倩 | C169: 镇远县村级幼儿园 | D169: 202311 | E169: 80.82 | F169: 40.41 | G169: 62.67 | H169: 31.34 | I169: 71.75
A170: =SUBTOTAL(103,$B$4:B170) -> 167 | B170: 费梅贵 | C170: 镇远县村级幼儿园 | D170: 202311 | E170: 81.22 | F170: 40.61 | G170: 62.03 | H170: 31.02 | I170: 71.63
A171: =SUBTOTAL(103,$B$4:B171) -> 168 | B171: 马飞静 | C171: 镇远县村级幼儿园 | D171: 202311 | E171: 79.54 | F171: 39.77 | G171: 63.52 | H171: 31.76 | I171: 71.53
A172: =SUBTOTAL(103,$B$4:B172) -> 169 | B172: 焦永霞 | C172: 镇远县村级幼儿园 | D172: 202311 | E172: 79.56 | F172: 39.78 | G172: 63.38 | H172: 31.69 | I172: 71.47
A173: =SUBTOTAL(103,$B$4:B173) -> 170 | B173: 潘小月 | C173: 镇远县村级幼儿园 | D173: 202311 | E173: 80.78 | F173: 40.39 | G173: 60.59 | H173: 30.30 | I173: 70.69
A174: =SUBTOTAL(103,$B$4:B174) -> 171 | B174: 陈兰菊 | C174: 镇远县村级幼儿园 | D174: 202311 | E174: 79.82 | F174: 39.91 | G174: 58.68 | H174: 29.34 | I174: 69.25
A175: =SUBTOTAL(103,$B$4:B175) -> 172 | B175: 张亚红 | C175: 镇远县村级幼儿园 | D175: 202311 | E175: 78.94 | F175: 39.47 | G175: 33.07 | H175: 16.54 | I175: 56.01
A176: =SUBTOTAL(103,$B$4:B176) -> 173 | B176: 郑继梅 | C176: 镇远县村级幼儿园 | D176: 202311 | E176: 85.96 | F176: 42.98 | G176: 缺考 | I176: 缺考
A177: =SUBTOTAL(103,$B$4:B177) -> 174 | B177: 谢青青 | C177: 镇远县村级幼儿园 | D177: 202311 | E177: 84.44 | F177: 42.22 | G177: 缺考 | I177: 缺考
A178: =SUBTOTAL(103,$B$4:B178) -> 175 | B178: 俞 玲 | C178: 镇远县村级幼儿园 | D178: 202311 | E178: 82.28 | F178: 41.14 | G178: 缺考 | I178: 缺考
A179: =SUBTOTAL(103,$B$4:B179) -> 176 | B179: 管彦仓 | C179: 镇远县村级幼儿园 | D179: 202311 | E179: 80 | F179: 40.00 | G179: 缺考 | I179: 缺考
A180: =SUBTOTAL(103,$B$4:B180) -> 177 | B180: 田 旭 | C180: 镇远县村级幼儿园 | D180: 202311 | E180: 79.42 | F180: 39.71 | G180: 缺考 | I180: 缺考
A181: =SUBTOTAL(103,$B$4:B181) -> 178 | B181: 彭乾敏 | C181: 镇远县村级幼儿园 | D181: 202311 | E181: 79.14 | F181: 39.57 | G181: 缺考 | I181: 缺考
A182: =SUBTOTAL(103,$B$4:B182) -> 179 | B182: 万花丁 | C182: 镇远县村级幼儿园 | D182: 202311 | E182: 78.3 | F182: 39.15 | G182: 缺考 | I182: 缺考
A183: =SUBTOTAL(103,$B$4:B183) -> 180 | B183: 杨兰满 | C183: 镇远县村级幼儿园 | D183: 202312 | E183: 71.96 | F183: 35.98 | G183: 91.12 | H183: =ROUND(G183*0.5,2) -> 45.56 | I183: =ROUND(F183+H183,2) -> 81.54 | J183: 是
A184: =SUBTOTAL(103,$B$4:B184) -> 181 | B184: 龙步桃 | C184: 镇远县村级幼儿园 | D184: 202312 | E184: 78.76 | F184: 39.38 | G184: 80.60 | H184: 40.30 | I184: 79.68 | J184: 是
A185: =SUBTOTAL(103,$B$4:B185) -> 182 | B185: 姚 艳 | C185: 镇远县村级幼儿园 | D185: 202312 | E185: 70.56 | F185: 35.28 | G185: 86.63 | H185: 43.32 | I185: 78.60 | J185: 是
A186: =SUBTOTAL(103,$B$4:B186) -> 183 | B186: 宋吉梅 | C186: 镇远县村级幼儿园 | D186: 202312 | E186: 70.06 | F186: 35.03 | G186: 84.09 | H186: 42.05 | I186: 77.08 | J186: 是
A187: =SUBTOTAL(103,$B$4:B187) -> 184 | B187: 王 端 | C187: 镇远县村级幼儿园 | D187: 202312 | E187: 69.18 | F187: 34.59 | G187: 81.45 | H187: 40.73 | I187: 75.32
A188: =SUBTOTAL(103,$B$4:B188) -> 185 | B188: 张铭焘 | C188: 镇远县村级幼儿园 | D188: 202312 | E188: 67.14 | F188: 33.57 | G188: 82.15 | H188: 41.08 | I188: 74.65
A189: =SUBTOTAL(103,$B$4:B189) -> 186 | B189: 戴 娟 | C189: 镇远县村级幼儿园 | D189: 202312 | E189: 65.02 | F189: 32.51 | G189: 75.50 | H189: 37.75 | I189: 70.26
A190: =SUBTOTAL(103,$B$4:B190) -> 187 | B190: 周正琴 | C190: 镇远县村级幼儿园 | D190: 202313 | E190: 72.88 | F190: 36.44 | G190: 89.17 | H190: 44.59 | I190: 81.03 | J190: 是
A191: =SUBTOTAL(103,$B$4:B191) -> 188 | B191: 唐仁梅 | C191: 镇远县村级幼儿园 | D191: 202313 | E191: 78.14 | F191: 39.07 | G191: 82.65 | H191: 41.33 | I191: 80.40 | J191: 是
A192: =SUBTOTAL(103,$B$4:B192) -> 189 | B192: 龙慧婷 | C192: 镇远县村级幼儿园 | D192: 202313 | E192: 73.2 | F192: 36.60 | G192: 87.35 | H192: 43.68 | I192: 80.28 | J192: 是
A193: =SUBTOTAL(103,$B$4:B193) -> 190 | B193: 张万莲 | C193: 镇远县村级幼儿园 | D193: 202313 | E193: 72.88 | F193: 36.44 | G193: 86.58 | H193: 43.29 | I193: 79.73
A194: =SUBTOTAL(103,$B$4:B194) -> 191 | B194: 李 艳 | C194: 镇远县村级幼儿园 | D194: 202313 | E194: 76.1 | F194: 38.05 | G194: 80.87 | H194: 40.44 | I194: 78.49
A195: =SUBTOTAL(103,$B$4:B195) -> 192 | B195: 谢 欣 | C195: 镇远县村级幼儿园 | D195: 202313 | E195: 67.18 | F195: 33.59 | G195: 83.01 | H195: 41.51 | I195: 75.10
A196: =SUBTOTAL(103,$B$4:B196) -> 193 | B196: 石学阳 | C196: 镇远县村级幼儿园 | D196: 202313 | E196: 64.06 | F196: =ROUND(E196*0.5,2) -> 32.03 | G196: 81.59 | H196: 40.80 | I196: 72.83
A197: =SUBTOTAL(103,$B$4:B197) -> 194 | B197: 龙 菊 | C197: 镇远县村级幼儿园 | D197: 202313 | E197: 61.52 | F197: 30.76 | G197: 80.62 | H197: 40.31 | I197: 71.07
A198: =SUBTOTAL(103,$B$4:B198) -> 195 | B198: 龙 敏 | C198: 镇远县村级幼儿园 | D198: 202313 | E198: 66.32 | F198: 33.16 | G198: 65.70 | H198: 32.85 | I198: 66.01
A199: =SUBTOTAL(103,$B$4:B199) -> 196 | B199: 谢树杰 | C199: 镇远县村级幼儿园 | D199: 202314 | E199: 76.96 | F199: 38.48 | G199: 78.63 | H199: 39.32 | I199: 77.80 | J199: 是
A200: =SUBTOTAL(103,$B$4:B200) -> 197 | B200: 张玉霞 | C200: 镇远县村级幼儿园 | D200: 202314 | E200: 72.36 | F200: 36.18 | G200: 76.03 | H200: 38.02 | I200: 74.20 | J200: 是
... 4 more rows
